[Event "Titled Tuesday Blitz November 01 Late 2022"]
[White "Maksimovic, Bojan"]
[Black "Al Hosani, Omran"]
[WhiteFideId "14408120"]
[BlackFideId "9308733"]
[WhiteElo "2447"]
[BlackElo "2167"]
[Result "1-0"]
[Round "03"]
[TimeControl "180+1"]
[Date "2022.11.02"]
[WhiteClock "0:00:05"]
[BlackClock "0:00:01"]

1. e4 {[%clk 0:03:00]}  c5 {[%clk 0:02:58]} 2. Nf3 {[%clk 0:03:01]}  Nc6 {[%clk 0:02:59]} 3. d4 {[%clk 0:03:01]}  cxd4 {[%clk 0:02:59]} 4. Nxd4 {[%clk 0:03:02]}  Nf6 {[%clk 0:03:00]} 5. Nc3 {[%clk 0:03:02]}  e5 {[%clk 0:03:01]} 6. Ndb5 {[%clk 0:03:02]}  d6 {[%clk 0:03:01]} 7. Nd5 {[%clk 0:03:03]}  Nxd5 {[%clk 0:03:01]} 8. exd5 {[%clk 0:03:04]}  Nb8 {[%clk 0:03:01]} 9. a4 {[%clk 0:03:04]}  Be7 {[%clk 0:03:01]} 10. Be2 {[%clk 0:03:04]}  O-O {[%clk 0:03:02]} 11. O-O {[%clk 0:03:05]}  a6 {[%clk 0:03:01]} 12. Na3 {[%clk 0:03:05]}  Nd7 {[%clk 0:03:00]} 13. Kh1 {[%clk 0:03:04]}  f5 {[%clk 0:03:01]} 14. f4 {[%clk 0:03:04]}  a5 {[%clk 0:02:56]} 15. Nc4 {[%clk 0:03:02]}  e4 {[%clk 0:02:55]} 16. Be3 {[%clk 0:03:01]}  b6 {[%clk 0:02:53]} 17. c3 {[%clk 0:03:00]}  Ba6 {[%clk 0:02:53]} 18. Na3 {[%clk 0:02:50]}  Bxe2 {[%clk 0:02:46]} 19. Qxe2 {[%clk 0:02:51]}  Nc5 {[%clk 0:02:47]} 20. Bxc5 {[%clk 0:02:44]}  bxc5 {[%clk 0:02:47]} 21. Nc4 {[%clk 0:02:42]}  Qc7 {[%clk 0:02:43]} 22. g4 {[%clk 0:02:31]}  Qb7 {[%clk 0:02:27]} 23. Rad1 {[%clk 0:02:22]}  fxg4 {[%clk 0:02:10]} 24. Qxg4 {[%clk 0:02:22]}  Qa6 {[%clk 0:02:04]} 25. Qe6+ {[%clk 0:02:19]}  Rf7 {[%clk 0:02:04]} 26. Qxe4 {[%clk 0:02:19]}  Raf8 {[%clk 0:01:59]} 27. Kg2 {[%clk 0:02:12]}  Qb7 {[%clk 0:01:56]} 28. Rd2 {[%clk 0:02:05]}  Qd7 {[%clk 0:01:55]} 29. Ne3 {[%clk 0:01:50]}  Bf6 {[%clk 0:01:29]} 30. Qd3 {[%clk 0:01:42]}  Qxa4 {[%clk 0:01:27]} 31. Nc4 {[%clk 0:01:32]}  Qd7 {[%clk 0:01:25]} 32. Re2 {[%clk 0:01:23]}  Bg5 {[%clk 0:01:22]} 33. f5 {[%clk 0:01:01]}  Be7 {[%clk 0:00:33]} 34. Re6 {[%clk 0:00:58]}  g6 {[%clk 0:00:25]} 35. f6 {[%clk 0:00:43]}  Rxf6 {[%clk 0:00:24]} 36. Rfxf6 {[%clk 0:00:43]}  Rxf6 {[%clk 0:00:24]} 37. Qe4 {[%clk 0:00:43]}  Rxe6 {[%clk 0:00:21]} 38. dxe6 {[%clk 0:00:44]}  Qd8 {[%clk 0:00:20]} 39. Ne3 {[%clk 0:00:41]}  Bf8 {[%clk 0:00:20]} 40. Nd5 {[%clk 0:00:42]}  Qg5+ {[%clk 0:00:20]} 41. Kf3 {[%clk 0:00:28]}  Qh5+ {[%clk 0:00:19]} 42. Ke3 {[%clk 0:00:29]}  Bh6+ {[%clk 0:00:17]} 43. Kd3 {[%clk 0:00:11]}  Qd1+ {[%clk 0:00:16]} 44. Kc4 {[%clk 0:00:12]}  Qa4+ {[%clk 0:00:15]} 45. b4 {[%clk 0:00:08]}  axb4 {[%clk 0:00:09]} 46. cxb4 {[%clk 0:00:08]}  Qa6+ {[%clk 0:00:08]} 47. Kb3 {[%clk 0:00:07]}  Qa1 {[%clk 0:00:04]} 48. e7 {[%clk 0:00:05]}  cxb4 {[%clk 0:00:01]} 49. e8=Q+ {[%clk 0:00:05]} 1-0


[Site "https://www.chess.com"]

[Event "Titled Tuesday Blitz November 01 Late 2022"]
[White "Martinez Alcantara, Jose Eduardo"]
[Black "Makarian, Rudik"]
[WhiteFideId "3805662"]
[BlackFideId "44105681"]
[WhiteElo "3030"]
[BlackElo "2814"]
[Result "0-1"]
[Round "03"]
[TimeControl "180+1"]
[Date "2022.11.01"]
[WhiteClock "0:00:53"]
[BlackClock "0:00:12"]

1. e4 {[%clk 0:03:00]}  c5 {[%clk 0:02:59]} 2. Nf3 {[%clk 0:03:01]}  e6 {[%clk 0:02:59]} 3. c3 {[%clk 0:03:01]}  d5 {[%clk 0:02:59]} 4. exd5 {[%clk 0:03:01]}  Qxd5 {[%clk 0:02:59]} 5. d4 {[%clk 0:03:02]}  Nf6 {[%clk 0:02:59]} 6. Be3 {[%clk 0:03:02]}  cxd4 {[%clk 0:02:57]} 7. cxd4 {[%clk 0:03:03]}  Be7 {[%clk 0:02:58]} 8. Nc3 {[%clk 0:03:04]}  Qd6 {[%clk 0:02:58]} 9. Bc4 {[%clk 0:03:04]}  O-O {[%clk 0:02:58]} 10. O-O {[%clk 0:03:04]}  a6 {[%clk 0:02:58]} 11. d5 {[%clk 0:03:04]}  e5 {[%clk 0:02:53]} 12. Nd2 {[%clk 0:02:42]}  Bf5 {[%clk 0:02:52]} 13. Bb3 {[%clk 0:02:38]}  Bd3 {[%clk 0:02:30]} 14. Re1 {[%clk 0:02:22]}  Nbd7 {[%clk 0:02:31]} 15. Bc2 {[%clk 0:02:21]}  Bxc2 {[%clk 0:02:29]} 16. Qxc2 {[%clk 0:02:22]}  Rac8 {[%clk 0:02:29]} 17. Qb3 {[%clk 0:02:21]}  b5 {[%clk 0:02:24]} 18. Nde4 {[%clk 0:02:21]}  Nxe4 {[%clk 0:02:20]} 19. Nxe4 {[%clk 0:02:22]}  Qg6 {[%clk 0:02:19]} 20. d6 {[%clk 0:02:19]}  Bxd6 {[%clk 0:02:04]} 21. Qd5 {[%clk 0:02:08]}  Bb4 {[%clk 0:01:44]} 22. Bd2 {[%clk 0:01:52]}  Bxd2 {[%clk 0:01:40]} 23. Qxd2 {[%clk 0:01:53]}  Nc5 {[%clk 0:01:31]} 24. Nxc5 {[%clk 0:01:46]}  Rxc5 {[%clk 0:01:32]} 25. b4 {[%clk 0:01:45]}  Rc2 {[%clk 0:01:26]} 26. Qd5 {[%clk 0:01:44]}  Qf6 {[%clk 0:01:14]} 27. Rf1 {[%clk 0:01:35]}  Rd8 {[%clk 0:01:13]} 28. Qb7 {[%clk 0:01:35]}  h5 {[%clk 0:01:00]} 29. a4 {[%clk 0:01:35]}  Qc6 {[%clk 0:00:55]} 30. Qe7 {[%clk 0:01:29]}  Qd6 {[%clk 0:00:54]} 31. Qh4 {[%clk 0:01:28]}  g6 {[%clk 0:00:45]} 32. axb5 {[%clk 0:01:28]}  axb5 {[%clk 0:00:46]} 33. h3 {[%clk 0:01:28]}  Rc4 {[%clk 0:00:45]} 34. Qg5 {[%clk 0:01:28]}  Rxb4 {[%clk 0:00:44]} 35. Rfe1 {[%clk 0:01:28]}  Re8 {[%clk 0:00:40]} 36. Ra7 {[%clk 0:01:28]}  Rd4 {[%clk 0:00:34]} 37. Qc1 {[%clk 0:01:28]}  Kg7 {[%clk 0:00:33]} 38. Qa1 {[%clk 0:01:21]}  b4 {[%clk 0:00:31]} 39. Ra6 {[%clk 0:01:21]}  Qd5 {[%clk 0:00:30]} 40. Ra5 {[%clk 0:01:21]}  Qd6 {[%clk 0:00:30]} 41. Ra6 {[%clk 0:01:22]}  Qd8 {[%clk 0:00:30]} 42. Ra5 {[%clk 0:01:22]}  Qf6 {[%clk 0:00:29]} 43. Qb2 {[%clk 0:01:16]}  Qf4 {[%clk 0:00:27]} 44. Rf1 {[%clk 0:01:07]}  Qe4 {[%clk 0:00:25]} 45. Rb5 {[%clk 0:01:04]}  Re7 {[%clk 0:00:22]} 46. Rb6 {[%clk 0:01:04]}  Rb7 {[%clk 0:00:20]} 47. Ra6 {[%clk 0:00:59]}  b3 {[%clk 0:00:21]} 48. Ra8 {[%clk 0:00:57]}  Qc2 {[%clk 0:00:19]} 49. Qa3 {[%clk 0:00:57]}  Rdb4 {[%clk 0:00:16]} 50. Qa5 {[%clk 0:00:57]}  Qc7 {[%clk 0:00:14]} 51. Qa1 {[%clk 0:00:50]}  b2 {[%clk 0:00:14]} 52. Qb1 {[%clk 0:00:51]}  Qc3 {[%clk 0:00:14]} 53. Rd8 {[%clk 0:00:51]}  Rc7 {[%clk 0:00:14]} 54. Rdd1 {[%clk 0:00:51]}  Qc2 {[%clk 0:00:14]} 55. Qa2 {[%clk 0:00:50]}  b1=Q {[%clk 0:00:14]} 56. Rxb1 {[%clk 0:00:50]}  Qxa2 {[%clk 0:00:13]} 57. Rxb4 {[%clk 0:00:51]}  Qd2 {[%clk 0:00:12]} 58. Re4 {[%clk 0:00:51]}  Rc1 {[%clk 0:00:12]} 59. Ree1 {[%clk 0:00:52]}  Rxe1 {[%clk 0:00:12]} 60. Kh2 {[%clk 0:00:53]}  Rxf1 {[%clk 0:00:12]} 0-1


[Site "https://www.chess.com"]

[Event "Titled Tuesday Blitz November 01 Late 2022"]
[White "Martinez Molina, Carlos Alberto"]
[Black "Piesik, Piotr"]
[WhiteFideId "5122708"]
[BlackFideId "1136194"]
[WhiteElo "2212"]
[BlackElo "2323"]
[Result "0-1"]
[Round "03"]
[TimeControl "180+1"]
[Date "2022.11.02"]
[WhiteClock "0:00:05"]
[BlackClock "0:00:11"]

1. d4 {[%clk 0:03:00]}  c5 {[%clk 0:02:55]} 2. d5 {[%clk 0:03:00]}  e5 {[%clk 0:02:55]} 3. c4 {[%clk 0:02:59]}  d6 {[%clk 0:02:55]} 4. Nc3 {[%clk 0:03:00]}  Be7 {[%clk 0:02:56]} 5. g3 {[%clk 0:02:52]}  Bg5 {[%clk 0:02:56]} 6. e3 {[%clk 0:02:53]}  f5 {[%clk 0:02:56]} 7. Bg2 {[%clk 0:02:49]}  Nd7 {[%clk 0:02:55]} 8. f4 {[%clk 0:02:46]}  Bf6 {[%clk 0:02:54]} 9. e4 {[%clk 0:02:30]}  Ne7 {[%clk 0:02:53]} 10. Nf3 {[%clk 0:02:27]}  O-O {[%clk 0:02:52]} 11. O-O {[%clk 0:02:24]}  a6 {[%clk 0:02:47]} 12. a4 {[%clk 0:02:23]}  exf4 {[%clk 0:02:35]} 13. Bxf4 {[%clk 0:02:19]}  Qc7 {[%clk 0:02:35]} 14. Qc2 {[%clk 0:02:06]}  Ng6 {[%clk 0:02:31]} 15. Bg5 {[%clk 0:01:50]}  Bxc3 {[%clk 0:02:17]} 16. exf5 {[%clk 0:01:08]}  Nge5 {[%clk 0:01:56]} 17. Qxc3 {[%clk 0:01:00]}  Rxf5 {[%clk 0:01:48]} 18. Bf4 {[%clk 0:00:38]}  Nxf3+ {[%clk 0:01:43]} 19. Rxf3 {[%clk 0:00:35]}  Ne5 {[%clk 0:01:40]} 20. Bxe5 {[%clk 0:00:33]}  Rxe5 {[%clk 0:01:41]} 21. Raf1 {[%clk 0:00:32]}  Bg4 {[%clk 0:01:41]} 22. Rf4 {[%clk 0:00:27]}  Bh5 {[%clk 0:01:38]} 23. Bh3 {[%clk 0:00:26]}  h6 {[%clk 0:01:31]} 24. Be6+ {[%clk 0:00:24]}  Kh8 {[%clk 0:01:30]} 25. Qd3 {[%clk 0:00:19]}  Qe7 {[%clk 0:01:25]} 26. g4 {[%clk 0:00:18]}  Rg5 {[%clk 0:01:15]} 27. Kh1 {[%clk 0:00:16]}  Bg6 {[%clk 0:01:14]} 28. Qf3 {[%clk 0:00:14]}  Kh7 {[%clk 0:01:05]} 29. h4 {[%clk 0:00:14]}  Re5 {[%clk 0:01:04]} 30. h5 {[%clk 0:00:14]}  Bc2 {[%clk 0:00:56]} 31. Rf2 {[%clk 0:00:13]}  Qh4+ {[%clk 0:00:48]} 32. Kg2 {[%clk 0:00:08]}  Re1 {[%clk 0:00:47]} 33. Rf1 {[%clk 0:00:08]}  Rxf1 {[%clk 0:00:36]} 34. Qxf1 {[%clk 0:00:09]}  Re8 {[%clk 0:00:28]} 35. Qc1 {[%clk 0:00:09]}  Bxa4 {[%clk 0:00:22]} 36. Qb1+ {[%clk 0:00:09]}  Kh8 {[%clk 0:00:21]} 37. Qg6 {[%clk 0:00:10]}  Rd8 {[%clk 0:00:17]} 38. Bf5 {[%clk 0:00:10]}  Kg8 {[%clk 0:00:12]} 39. Be6+ {[%clk 0:00:10]}  Kh8 {[%clk 0:00:12]} 40. Bf5 {[%clk 0:00:11]}  Kg8 {[%clk 0:00:12]} 41. Bc2 {[%clk 0:00:11]}  Bxc2 {[%clk 0:00:12]} 42. Qxc2 {[%clk 0:00:11]}  Re8 {[%clk 0:00:11]} 43. Qd2 {[%clk 0:00:05]}  Qe1 {[%clk 0:00:10]} 44. Qxe1 {[%clk 0:00:05]}  Rxe1 {[%clk 0:00:11]} 45. Rf2 {[%clk 0:00:05]}  Re4 {[%clk 0:00:11]} 0-1


[Site "https://www.chess.com"]

[Event "Titled Tuesday Blitz November 01 Late 2022"]
[White "Matinian, Nikita"]
[Black "Rustemov, Alexander"]
[WhiteFideId "24129100"]
[BlackFideId "4119002"]
[WhiteElo "2422"]
[BlackElo "2923"]
[Result "1/2-1/2"]
[Round "03"]
[TimeControl "180+1"]
[Date "2022.11.01"]
[WhiteClock "0:00:06"]
[BlackClock "0:01:04"]

1. e4 {[%clk 0:03:00]}  e6 {[%clk 0:02:55]} 2. d4 {[%clk 0:03:00]}  d5 {[%clk 0:02:56]} 3. Nc3 {[%clk 0:03:01]}  Bb4 {[%clk 0:02:55]} 4. Ne2 {[%clk 0:03:01]}  Nf6 {[%clk 0:02:54]} 5. e5 {[%clk 0:03:01]}  Nfd7 {[%clk 0:02:54]} 6. a3 {[%clk 0:03:01]}  Be7 {[%clk 0:02:54]} 7. b4 {[%clk 0:03:01]}  b6 {[%clk 0:02:53]} 8. Nf4 {[%clk 0:02:56]}  c5 {[%clk 0:02:50]} 9. dxc5 {[%clk 0:02:30]}  bxc5 {[%clk 0:02:48]} 10. Qh5 {[%clk 0:01:50]}  g6 {[%clk 0:02:38]} 11. Qh6 {[%clk 0:01:50]}  Nxe5 {[%clk 0:02:37]} 12. Bb5+ {[%clk 0:01:49]}  Bd7 {[%clk 0:02:35]} 13. O-O {[%clk 0:01:48]}  Bf8 {[%clk 0:02:18]} 14. Qh3 {[%clk 0:01:43]}  Bxb5 {[%clk 0:02:03]} 15. Nxb5 {[%clk 0:01:43]}  Qd7 {[%clk 0:02:03]} 16. Bb2 {[%clk 0:01:38]}  Bg7 {[%clk 0:01:59]} 17. Rfe1 {[%clk 0:01:12]}  Nbc6 {[%clk 0:01:54]} 18. bxc5 {[%clk 0:01:06]}  O-O {[%clk 0:01:53]} 19. Nd6 {[%clk 0:01:04]}  Rab8 {[%clk 0:01:48]} 20. Bxe5 {[%clk 0:00:58]}  Nxe5 {[%clk 0:01:42]} 21. Rad1 {[%clk 0:00:53]}  Qc6 {[%clk 0:01:28]} 22. Nxe6 {[%clk 0:00:49]}  fxe6 {[%clk 0:01:21]} 23. Rxe5 {[%clk 0:00:49]}  Qxc5 {[%clk 0:01:11]} 24. Qxe6+ {[%clk 0:00:48]}  Kh8 {[%clk 0:01:12]} 25. Re2 {[%clk 0:00:41]}  Rf6 {[%clk 0:01:06]} 26. Nf7+ {[%clk 0:00:19]}  Kg8 {[%clk 0:01:06]} 27. Nh6+ {[%clk 0:00:16]}  Kh8 {[%clk 0:01:04]} 28. Nf7+ {[%clk 0:00:16]}  Kg8 {[%clk 0:01:04]} 29. Nh6+ {[%clk 0:00:12]}  Kh8 {[%clk 0:01:04]} 30. Nf7+ {[%clk 0:00:06]} 1/2-1/2


[Site "https://www.chess.com"]

[Event "Titled Tuesday Blitz November 01 Late 2022"]
[White "Melkumyan, Hrant"]
[Black "Timmermans, Mark"]
[WhiteFideId "13302485"]
[BlackFideId "1026399"]
[WhiteElo "2974"]
[BlackElo "2777"]
[Result "1-0"]
[Round "03"]
[TimeControl "180+1"]
[Date "2022.11.01"]
[WhiteClock "0:01:31"]
[BlackClock "0:01:32"]

1. c4 {[%clk 0:03:00]}  e5 {[%clk 0:02:58]} 2. e3 {[%clk 0:03:01]}  g6 {[%clk 0:02:55]} 3. Nc3 {[%clk 0:03:00]}  Bg7 {[%clk 0:02:56]} 4. Nf3 {[%clk 0:03:00]}  Ne7 {[%clk 0:02:55]} 5. d4 {[%clk 0:03:00]}  exd4 {[%clk 0:02:56]} 6. exd4 {[%clk 0:02:59]}  d5 {[%clk 0:02:57]} 7. Bg5 {[%clk 0:02:54]}  h6 {[%clk 0:02:51]} 8. Bh4 {[%clk 0:02:50]}  c6 {[%clk 0:02:46]} 9. cxd5 {[%clk 0:02:49]}  g5 {[%clk 0:02:46]} 10. Bg3 {[%clk 0:02:44]}  Nxd5 {[%clk 0:02:46]} 11. Bd3 {[%clk 0:02:38]}  O-O {[%clk 0:02:32]} 12. O-O {[%clk 0:02:38]}  Bg4 {[%clk 0:02:31]} 13. h3 {[%clk 0:02:35]}  Bh5 {[%clk 0:02:30]} 14. Re1 {[%clk 0:02:28]}  Nxc3 {[%clk 0:02:24]} 15. bxc3 {[%clk 0:02:27]}  Nd7 {[%clk 0:02:25]} 16. Bf5 {[%clk 0:02:21]}  Nb6 {[%clk 0:02:20]} 17. Qd3 {[%clk 0:02:19]}  Qd5 {[%clk 0:02:16]} 18. Ne5 {[%clk 0:02:17]}  Rad8 {[%clk 0:02:09]} 19. Bh7+ {[%clk 0:02:14]}  Kh8 {[%clk 0:02:08]} 20. Be4 {[%clk 0:02:15]}  Qa5 {[%clk 0:01:54]} 21. Bf3 {[%clk 0:02:00]}  Bxf3 {[%clk 0:01:52]} 22. Qxf3 {[%clk 0:02:01]}  Kg8 {[%clk 0:01:50]} 23. h4 {[%clk 0:01:53]}  Qd5 {[%clk 0:01:34]} 24. Qh5 {[%clk 0:01:44]}  f6 {[%clk 0:01:32]} 25. Ng6 {[%clk 0:01:42]}  Qf7 {[%clk 0:01:32]} 26. Re7 {[%clk 0:01:31]} 1-0


[Site "https://www.chess.com"]

[Event "Titled Tuesday Blitz November 01 Late 2022"]
[White "Mickiewicz, Piotr"]
[Black "Pinheiro, Iung Alicio de O."]
[WhiteFideId "1114891"]
[BlackFideId "2104350"]
[WhiteElo "2246"]
[BlackElo "2283"]
[Result "1-0"]
[Round "03"]
[TimeControl "180+1"]
[Date "2022.11.02"]
[WhiteClock "0:00:23"]
[BlackClock "0:00:33"]

1. e4 {[%clk 0:03:00]}  c5 {[%clk 0:02:59]} 2. Nf3 {[%clk 0:03:01]}  Nc6 {[%clk 0:02:59]} 3. Bc4 {[%clk 0:03:01]}  e6 {[%clk 0:02:58]} 4. d3 {[%clk 0:03:01]}  Na5 {[%clk 0:02:49]} 5. O-O {[%clk 0:02:57]}  a6 {[%clk 0:02:45]} 6. a4 {[%clk 0:02:52]}  Nxc4 {[%clk 0:02:44]} 7. dxc4 {[%clk 0:02:53]}  d6 {[%clk 0:02:42]} 8. a5 {[%clk 0:02:49]}  Bd7 {[%clk 0:02:39]} 9. Re1 {[%clk 0:02:42]}  Bc6 {[%clk 0:02:39]} 10. b3 {[%clk 0:02:36]}  Nf6 {[%clk 0:02:36]} 11. Nbd2 {[%clk 0:02:35]}  Be7 {[%clk 0:02:35]} 12. Bb2 {[%clk 0:02:34]}  e5 {[%clk 0:02:30]} 13. Qe2 {[%clk 0:02:30]}  O-O {[%clk 0:02:29]} 14. g3 {[%clk 0:02:25]}  h6 {[%clk 0:02:21]} 15. Nh4 {[%clk 0:02:23]}  Bd7 {[%clk 0:02:20]} 16. Ng2 {[%clk 0:02:17]}  Nh7 {[%clk 0:02:19]} 17. Ne3 {[%clk 0:02:15]}  Qc8 {[%clk 0:02:15]} 18. Nd5 {[%clk 0:02:11]}  Bd8 {[%clk 0:02:14]} 19. Nf1 {[%clk 0:02:09]}  Ng5 {[%clk 0:02:04]} 20. f3 {[%clk 0:01:29]}  f5 {[%clk 0:02:00]} 21. exf5 {[%clk 0:01:13]}  Bxf5 {[%clk 0:01:53]} 22. Nfe3 {[%clk 0:01:11]}  Bg6 {[%clk 0:01:31]} 23. Rf1 {[%clk 0:01:10]}  Bh5 {[%clk 0:01:28]} 24. g4 {[%clk 0:01:08]}  Bg6 {[%clk 0:01:27]} 25. Rae1 {[%clk 0:00:32]}  Ne6 {[%clk 0:01:13]} 26. Ng2 {[%clk 0:00:25]}  Rf7 {[%clk 0:01:05]} 27. f4 {[%clk 0:00:24]}  Nxf4 {[%clk 0:01:00]} 28. Ngxf4 {[%clk 0:00:23]}  exf4 {[%clk 0:00:58]} 29. Nxf4 {[%clk 0:00:22]}  Bh7 {[%clk 0:00:34]} 30. Qe8+ {[%clk 0:00:21]}  Rf8 {[%clk 0:00:33]} 31. Qxf8+ {[%clk 0:00:22]}  Kxf8 {[%clk 0:00:33]} 32. Ng6+ {[%clk 0:00:23]} 1-0


[Site "https://www.chess.com"]

[Event "Titled Tuesday Blitz November 01 Late 2022"]
[White "Milosevic, Milos"]
[Black "Saucey, Michel"]
[WhiteFideId "964875"]
[BlackFideId "601845"]
[WhiteElo "2321"]
[BlackElo "2253"]
[Result "1-0"]
[Round "03"]
[TimeControl "180+1"]
[Date "2022.11.02"]
[WhiteClock "0:00:34"]
[BlackClock "0:00:10"]

1. e4 {[%clk 0:02:56]}  c5 {[%clk 0:02:59]} 2. Nc3 {[%clk 0:02:56]}  Nc6 {[%clk 0:02:58]} 3. Nf3 {[%clk 0:02:57]}  e6 {[%clk 0:02:57]} 4. d4 {[%clk 0:02:57]}  cxd4 {[%clk 0:02:56]} 5. Nxd4 {[%clk 0:02:58]}  Qc7 {[%clk 0:02:55]} 6. Be3 {[%clk 0:02:59]}  a6 {[%clk 0:02:55]} 7. Qf3 {[%clk 0:02:59]}  Nxd4 {[%clk 0:02:54]} 8. Bxd4 {[%clk 0:02:57]}  b5 {[%clk 0:02:54]} 9. O-O-O {[%clk 0:02:50]}  Bb7 {[%clk 0:02:54]} 10. Bd3 {[%clk 0:02:49]}  Ne7 {[%clk 0:02:51]} 11. Kb1 {[%clk 0:02:47]}  Nc6 {[%clk 0:02:50]} 12. Be3 {[%clk 0:02:44]}  Rc8 {[%clk 0:02:41]} 13. Ne2 {[%clk 0:02:21]}  Ne5 {[%clk 0:01:49]} 14. Qg3 {[%clk 0:02:14]}  Nxd3 {[%clk 0:01:40]} 15. Qxc7 {[%clk 0:02:13]}  Rxc7 {[%clk 0:01:40]} 16. cxd3 {[%clk 0:02:14]}  d5 {[%clk 0:01:35]} 17. e5 {[%clk 0:02:11]}  Be7 {[%clk 0:01:30]} 18. Rc1 {[%clk 0:02:11]}  Kd7 {[%clk 0:01:30]} 19. Rxc7+ {[%clk 0:02:10]}  Kxc7 {[%clk 0:01:30]} 20. Rc1+ {[%clk 0:02:11]}  Kd7 {[%clk 0:01:30]} 21. d4 {[%clk 0:02:07]}  Rc8 {[%clk 0:01:29]} 22. Rxc8 {[%clk 0:02:00]}  Kxc8 {[%clk 0:01:28]} 23. Kc2 {[%clk 0:02:01]}  Kd7 {[%clk 0:01:28]} 24. Kc3 {[%clk 0:01:57]}  a5 {[%clk 0:01:27]} 25. a3 {[%clk 0:01:55]}  b4+ {[%clk 0:01:26]} 26. axb4 {[%clk 0:01:54]}  Bxb4+ {[%clk 0:01:25]} 27. Kc2 {[%clk 0:01:52]}  Ba6 {[%clk 0:01:25]} 28. Nc1 {[%clk 0:01:47]}  Kc6 {[%clk 0:01:24]} 29. Bd2 {[%clk 0:01:41]}  Kb5 {[%clk 0:01:20]} 30. Bc3 {[%clk 0:01:32]}  Be7 {[%clk 0:01:19]} 31. Nb3 {[%clk 0:01:25]}  a4 {[%clk 0:01:17]} 32. Nd2 {[%clk 0:01:26]}  Bc8 {[%clk 0:01:16]} 33. Kd3 {[%clk 0:01:21]}  Bd7 {[%clk 0:01:16]} 34. f4 {[%clk 0:01:20]}  Ka6 {[%clk 0:01:08]} 35. g4 {[%clk 0:01:16]}  Bb5+ {[%clk 0:01:07]} 36. Ke3 {[%clk 0:01:17]}  Bc4 {[%clk 0:00:56]} 37. Nxc4 {[%clk 0:01:12]}  dxc4 {[%clk 0:00:55]} 38. Ke4 {[%clk 0:01:13]}  Kb5 {[%clk 0:00:52]} 39. d5 {[%clk 0:01:11]}  exd5+ {[%clk 0:00:52]} 40. Kxd5 {[%clk 0:01:11]}  a3 {[%clk 0:00:51]} 41. bxa3 {[%clk 0:01:10]}  Bxa3 {[%clk 0:00:50]} 42. f5 {[%clk 0:01:10]}  g6 {[%clk 0:00:41]} 43. e6 {[%clk 0:01:05]}  fxe6+ {[%clk 0:00:40]} 44. fxe6 {[%clk 0:00:56]}  Be7 {[%clk 0:00:39]} 45. Bd2 {[%clk 0:00:45]}  h5 {[%clk 0:00:36]} 46. g5 {[%clk 0:00:42]}  Bf8 {[%clk 0:00:34]} 47. h4 {[%clk 0:00:41]}  Be7 {[%clk 0:00:33]} 48. Bc3 {[%clk 0:00:41]}  Ba3 {[%clk 0:00:12]} 49. Bf6 {[%clk 0:00:36]}  c3 {[%clk 0:00:10]} 50. Bxc3 {[%clk 0:00:34]} 1-0


[Site "https://www.chess.com"]

[Event "Titled Tuesday Blitz November 01 Late 2022"]
[White "Mortazavi, Ali"]
[Black "Winkels, Marcel"]
[WhiteFideId "401323"]
[BlackFideId "1003887"]
[WhiteElo "2339"]
[BlackElo "1900"]
[Result "1-0"]
[Round "03"]
[TimeControl "180+1"]
[Date "2022.11.02"]
[WhiteClock "0:00:17"]
[BlackClock "0:00:05"]

1. e4 {[%clk 0:02:57]}  d6 {[%clk 0:02:59]} 2. d4 {[%clk 0:02:57]}  Nf6 {[%clk 0:02:59]} 3. Nc3 {[%clk 0:02:57]}  e5 {[%clk 0:02:59]} 4. Nf3 {[%clk 0:02:57]}  Nbd7 {[%clk 0:02:58]} 5. Bc4 {[%clk 0:02:57]}  Be7 {[%clk 0:02:56]} 6. a4 {[%clk 0:02:58]}  c6 {[%clk 0:02:55]} 7. a5 {[%clk 0:02:58]}  h6 {[%clk 0:02:55]} 8. Ba2 {[%clk 0:02:57]}  O-O {[%clk 0:02:52]} 9. O-O {[%clk 0:02:57]}  Re8 {[%clk 0:02:37]} 10. Re1 {[%clk 0:02:57]}  Bf8 {[%clk 0:02:37]} 11. Nh4 {[%clk 0:02:49]}  exd4 {[%clk 0:02:35]} 12. Qxd4 {[%clk 0:02:49]}  Nc5 {[%clk 0:02:36]} 13. Ng6 {[%clk 0:02:26]}  Be6 {[%clk 0:02:31]} 14. Nxf8 {[%clk 0:02:15]}  Kxf8 {[%clk 0:02:29]} 15. Bf4 {[%clk 0:02:09]}  Bxa2 {[%clk 0:02:20]} 16. Bxd6+ {[%clk 0:02:01]}  Kg8 {[%clk 0:02:19]} 17. Bxc5 {[%clk 0:01:56]}  Be6 {[%clk 0:02:11]} 18. Bxa7 {[%clk 0:01:53]}  Qxd4 {[%clk 0:01:54]} 19. Bxd4 {[%clk 0:01:52]}  Rad8 {[%clk 0:01:53]} 20. Bxf6 {[%clk 0:01:49]}  gxf6 {[%clk 0:01:52]} 21. Rad1 {[%clk 0:01:39]}  f5 {[%clk 0:01:49]} 22. f3 {[%clk 0:01:27]}  fxe4 {[%clk 0:01:41]} 23. Nxe4 {[%clk 0:01:27]}  Kg7 {[%clk 0:01:40]} 24. Nd6 {[%clk 0:01:21]}  Rf8 {[%clk 0:01:34]} 25. Nxb7 {[%clk 0:01:21]}  Ra8 {[%clk 0:01:31]} 26. Nc5 {[%clk 0:01:05]}  Bd5 {[%clk 0:01:26]} 27. b4 {[%clk 0:01:01]}  Rfb8 {[%clk 0:01:23]} 28. Rd4 {[%clk 0:01:01]}  Re8 {[%clk 0:01:01]} 29. Rxe8 {[%clk 0:00:56]}  Rxe8 {[%clk 0:00:59]} 30. c4 {[%clk 0:00:52]}  Be6 {[%clk 0:00:58]} 31. Rd6 {[%clk 0:00:52]}  Bxc4 {[%clk 0:00:53]} 32. Rxc6 {[%clk 0:00:51]}  Rb8 {[%clk 0:00:42]} 33. Rb6 {[%clk 0:00:43]}  Rd8 {[%clk 0:00:39]} 34. Kf2 {[%clk 0:00:38]}  h5 {[%clk 0:00:38]} 35. h4 {[%clk 0:00:36]}  Rd2+ {[%clk 0:00:35]} 36. Kg3 {[%clk 0:00:36]}  Bf1 {[%clk 0:00:34]} 37. a6 {[%clk 0:00:36]}  Rxg2+ {[%clk 0:00:29]} 38. Kf4 {[%clk 0:00:37]}  Ra2 {[%clk 0:00:29]} 39. b5 {[%clk 0:00:34]}  f6 {[%clk 0:00:24]} 40. Ne4 {[%clk 0:00:28]}  Ra4 {[%clk 0:00:21]} 41. Rb7+ {[%clk 0:00:24]}  Kg6 {[%clk 0:00:20]} 42. Ke3 {[%clk 0:00:20]}  Ra3+ {[%clk 0:00:17]} 43. Kd4 {[%clk 0:00:20]}  Be2 {[%clk 0:00:15]} 44. Rb6 {[%clk 0:00:18]}  Bxf3 {[%clk 0:00:14]} 45. Rxf6+ {[%clk 0:00:18]}  Kg7 {[%clk 0:00:14]} 46. Rxf3 {[%clk 0:00:18]}  Rxf3 {[%clk 0:00:11]} 47. a7 {[%clk 0:00:18]}  Ra3 {[%clk 0:00:12]} 48. b6 {[%clk 0:00:19]}  Ra6 {[%clk 0:00:08]} 49. b7 {[%clk 0:00:18]}  Rxa7 {[%clk 0:00:09]} 50. b8=Q {[%clk 0:00:18]}  Rd7+ {[%clk 0:00:08]} 51. Ke5 {[%clk 0:00:18]}  Re7+ {[%clk 0:00:08]} 52. Kf5 {[%clk 0:00:18]}  Rf7+ {[%clk 0:00:08]} 53. Kg5 {[%clk 0:00:18]}  Re7 {[%clk 0:00:08]} 54. Qd6 {[%clk 0:00:17]}  Rf7 {[%clk 0:00:07]} 55. Qh6+ {[%clk 0:00:16]}  Kg8 {[%clk 0:00:07]} 56. Nf6+ {[%clk 0:00:17]}  Rxf6 {[%clk 0:00:05]} 57. Qxf6 {[%clk 0:00:17]} 1-0


[Site "https://www.chess.com"]